fUST/lending_fUST_20250628
["ID","MTS","AMOUNT","RATE_DAILY","PERIOD"]
[368174354,1751049059028,-460.0,0.00021095,2]
[368174355,1751049059038,-964.61,0.00021095,2]
[368174356,1751049059047,-759.03,0.00021095,2]
[368174357,1751049059057,-559.46,0.00021095,2]
[368174358,1751049059066,-2175.15,0.00021095,2]
[368174359,1751049059076,-877.07,0.00021095,2]
[368174360,1751049059086,-3829.26,0.00021095,2]
[368174361,1751049059101,-460.0,0.00021095,2]
[368174362,1751049059111,-6238.11,0.00021095,2]
[368174363,1751049059120,-460.0,0.00021095,2]
[368174364,1751049059130,-460.0,0.00021095,2]
[368174365,1751049059139,-502.74,0.00021095,2]
[368174366,1751049059148,-1658.01,0.00021095,2]
[368174367,1751049059158,-151.0,0.00021095,2]
[368174368,1751049059167,-460.0,0.00021095,2]
[368174369,1751049059177,-858.85,0.00021095,2]
[368174370,1751049059186,-534.66,0.00021095,2]
[368174371,1751049059195,-460.0,0.00021095,2]
[368174372,1751049059204,-873.1,0.00021095,2]
[368174373,1751049059214,-1065.72,0.00021095,2]
[368174374,1751049059223,-460.0,0.00021095,2]
[368174375,1751049059232,-4635.38,0.00021095,2]
[368174376,1751049059241,-707.85,0.00021095,2]
[368174377,1751049059251,-822.12,0.00021095,2]
[368174378,1751049059260,-3704.5,0.00021095,2]
[368174379,1751049059270,-1201.37,0.00021095,2]
[368174380,1751049059280,-722.87,0.00021095,2]
[368174381,1751049059290,-1142.58,0.00021095,2]
[368174382,1751049059299,-499.48,0.00021095,2]
[368174383,1751049059308,-460.0,0.00021095,2]
[368174384,1751049059318,-731.11,0.00021095,2]
[368174385,1751049059327,-3866.0,0.00021095,2]
[368174386,1751049059337,-271.24,0.00021095,2]
[368174387,1751049059348,-833.403518,0.00021095,2]
[368174388,1751049059358,-1339.53,0.00021095,2]
[368174389,1751049059368,-833.403518,0.00021095,2]
[368174390,1751049059377,-460.0,0.00021095,2]
[368174391,1751049059387,-151.0,0.000211,4]
[368174392,1751049059396,-151.0,0.000211,3]
[368174393,1751049059405,-151.0,0.000211,3]
[368174394,1751049059414,-7050.28386955,0.00021107,4]
[368174395,1751049059423,-151.0,0.00021141,2]
[368174396,1751049059433,-151.0,0.00021141,2]
[368174397,1751049059442,-4157.50188723,0.00021155,2]
[368174398,1751049059452,-800.0,0.00021165,2]
[368174399,1751049059461,-800.0,0.00021193,2]
[368174400,1751049059471,-800.0,0.00021198,2]
[368174401,1751049059480,-539.0,0.00021239,2]
[368174402,1751049059489,-800.0,0.00021312,2]
[368174403,1751049059498,-7050.28386955,0.00021314,5]
[368174404,1751049059508,-153.0,0.00021315,2]
[368174405,1751049059517,-153.0,0.00021315,2]
[368174406,1751049059526,-153.0,0.00021315,2]
[368174407,1751049059536,-153.0,0.00021315,2]
[368174408,1751049059545,-153.0,0.00021315,2]
[368174409,1751049059554,-306.0,0.00021315,2]
[368174410,1751049059564,-539.0,0.00021335,2]
[368174411,1751049059575,-500.0,0.00021341,2]
[368174412,1751049059585,-233.2,0.00021352,4]
[368174413,1751049059595,-151.0,0.00021354,2]
[368174414,1751049059691,-638.46582205,0.00021369,2]
[368174415,1751049059701,-151.0,0.00021369,2]
[368174416,1751049059710,-151.0,0.00021369,2]
[368174417,1751049059720,-151.0,0.00021369,2]
[368174418,1751049059729,-151.0,0.00021369,2]
[368174419,1751049059739,-151.0,0.00021369,2]
[368174420,1751049059748,-460.0,0.00021369,2]
[368174421,1751049059758,-151.0,0.00021369,2]
[368174422,1751049059767,-151.0,0.00021369,2]
[368174423,1751049059776,-151.0,0.00021369,2]
[368174424,1751049059786,-460.0,0.00021369,2]
[368174425,1751049059795,-460.0,0.00021369,2]
[368174426,1751049059805,-297.134412,0.00021369,2]
[368174427,1751049059814,-151.0,0.00021369,2]
[368174428,1751049059824,-297.134412,0.00021369,2]
[368174429,1751049059833,-460.0,0.00021369,2]
[368174430,1751049059844,-368.31934,0.00021369,2]
[368174431,1751049059853,-368.31934,0.00021369,2]
[368174432,1751049059863,-226.47062421,0.00021369,2]
[368174433,1751049060627,-460.0,0.00019178,2]
[368174434,1751049060637,-460.0,0.00019452,2]
[368174435,1751049060646,-660.85,0.00021369,2]
[368174436,1751049060893,3901.49789228,0.000191,2]
[368174437,1751049060916,1098.50210772,0.000191,2]
[368174438,1751049067451,5000.0,0.000191,2]
[368174439,1751049071229,151.64124191,7.1e-07,2]
[368174440,1751049083071,5000.0,0.000191,2]
[368174441,1751049095117,219.00274952,0.000189,2]
[368174442,1751049098840,1510.63732408,0.000191,2]
[368174443,1751049110642,832.9366235,0.00018936,2]
[368174444,1751049165841,4833.1033329,0.0001865,2]
[368174445,1751049208155,1354.17662037,0.00018737,2]
[368174446,1751049208178,2801.66156533,0.00018737,2]
[368174447,1751049275457,275.044464,0.00018603,2]
[368174448,1751049279499,1038.3010585,0.00018668,2]
[368174449,1751049280718,2309.0,0.0001852,2]
[368174450,1751049343625,150.0,0.000189,2]
[368174451,1751049357391,13425.99291217,0.00018408,2]
[368174452,1751049357413,11657.97846933,0.00018408,2]
[368174453,1751049396459,150.0,0.000189,2]
[368174454,1751049400857,206.9656867,0.00018408,2]
[368174455,1751049402468,1051.3417523,0.00018408,2]
[368174456,1751049406692,329.0,0.00019048,2]
[368174457,1751049412460,329.0,0.00019004,2]
[368174458,1751049523666,556.1820658,0.00019078,2]
[368174459,1751049535535,228.421561,0.00018228,2]
[368174460,1751049549939,500.2696617,0.00018297,2]
[368174461,1751049558766,-329.0,0.00019118,2]
[368174462,1751049558789,-186.0,0.00019176,2]
[368174463,1751049558810,-300.0,0.00019176,2]
[368174464,1751049558833,-300.0,0.00019176,2]
[368174465,1751049558855,-1200.0,0.00019176,2]
[368174466,1751049558877,-300.0,0.00019176,2]
[368174467,1751049558900,-500.0,0.00019177,2]
[368174468,1751049558923,-500.0,0.00019177,2]
[368174469,1751049558946,-500.0,0.00019177,2]
[368174470,1751049558966,-157.2759432,0.00019177,2]
[368174471,1751049558989,-500.0,0.00019177,2]
[368174472,1751049559010,-308.46996604,0.00019177,2]
[368174473,1751049559031,-500.0,0.00019177,2]
[368174474,1751049559052,-500.0,0.00019177,2]
[368174475,1751049559074,-491.01899506,0.00019177,2]
[368174476,1751049559096,-500.0,0.00019177,2]
[368174477,1751049559118,-363.21755178,0.00019177,2]
[368174478,1751049559141,-500.0,0.00019177,2]
[368174479,1751049559164,-500.0,0.00019177,2]
[368174480,1751049559186,-500.0,0.00019177,2]
[368174481,1751049559208,-500.0,0.00019177,2]
[368174482,1751049559231,-500.0,0.00019177,2]
[368174483,1751049559254,-500.0,0.00019177,2]
[368174484,1751049559275,-255.6526147,0.00019177,2]
[368174485,1751049559297,-500.0,0.00019177,2]
[368174486,1751049559320,-500.0,0.00019177,2]
[368174487,1751049559341,-500.0,0.00019177,2]
[368174488,1751049559363,-500.0,0.00019177,2]
[368174489,1751049559384,-500.0,0.00019177,2]
[368174490,1751049559613,-500.0,0.00019177,2]
[368174491,1751049559636,-475.66807642,0.00019177,2]
[368174492,1751049559660,-500.0,0.00019177,2]
[368174493,1751049559684,-500.0,0.00019177,2]
[368174494,1751049559706,-494.93706043,0.00019177,2]
[368174495,1751049559727,-500.0,0.00019177,2]
[368174496,1751049559753,-498.75979237,0.00019177,2]
[368174497,1751049576758,314.89247798,0.00018603,2]
[368174498,1751049633706,4675.94832519,0.00018969,2]
[368174499,1751049633730,1212.05167481,0.00018969,2]
[368174500,1751049638395,5888.0,0.00019004,2]
[368174501,1751049641771,3682.018468,0.00018365,2]
[368174502,1751049703806,1524.451677,0.00018365,2]
[368174503,1751049735597,7693.47818019,0.00018297,2]
[368174504,1751049735622,17206.52181981,0.00018297,2]
[368174505,1751049782146,151.33487664,0.000191,2]
[368174506,1751049791104,1452.8524869,0.00018297,2]
[368174507,1751049807767,168.60722118,0.00018592,2]
[368174508,1751049878422,188.93548678,0.00018603,2]
[368174510,1751049955390,223.546524,0.00013699,2]
[368174511,1751049958084,-180.0,0.00019176,2]
[368174512,1751049958251,-107.76216925,0.00019176,2]
[368174513,1751049968930,608.20158469,0.00018382,2]
[368174514,1751049968954,599.57015811,0.00018382,2]
[368174515,1751050031122,-230.65974698,0.00019176,2]
[368174516,1751050037080,-69.34025302,0.00019176,2]
[368174517,1751050037103,-1.24020763,0.00019177,2]
[368174518,1751050037125,-500.0,0.00019177,2]
[368174519,1751050037147,-438.03246435,0.00019177,2]
[368174520,1751050037168,-59.02274772,0.00019177,2]
[368174521,1751050049092,-440.97725228,0.00019177,2]
[368174522,1751050049113,-300.0,0.00019177,2]
[368174523,1751050049136,-500.0,0.00019177,2]
[368174524,1751050049157,-216.05141813,0.00019177,2]
[368174525,1751050101103,187.29078355,0.00019077,2]
[368174526,1751050110941,259478.7575,0.00026016,60]
[368174527,1751050148996,695.24141857,0.00019078,2]
[368174569,1751050232358,-284.44291307,0.00019161,2]
[368174571,1751050232368,-283.94858187,0.00019177,2]
[368174573,1751050232377,-500.0,0.00019177,2]
[368174575,1751050232387,-500.0,0.00019177,2]
[368174577,1751050232396,-500.90824389,0.00019177,2]
[368174580,1751050232406,-314.55297343,0.00019177,2]
[368174583,1751050232416,-648.98223757,0.00019177,2]
[368174586,1751050232425,-500.0,0.00019177,2]
[368174589,1751050232435,-497.84687247,0.00019177,2]
[368174591,1751050232445,-500.0,0.00019177,2]
[368174593,1751050232454,-500.0,0.00019177,2]
[368174595,1751050232463,-424.7397733,0.00019177,2]
[368174597,1751050232473,-460.0,0.00019178,2]
[368174599,1751050232482,-460.0,0.00019178,2]
[368174600,1751050232492,-460.0,0.00019178,2]
[368174603,1751050232501,-460.0,0.00019178,2]
[368174606,1751050232511,-460.0,0.00019178,2]
[368174607,1751050232521,-308.14577533,0.00019178,2]
[368174609,1751050232530,-460.0,0.00019178,2]
[368174611,1751050232540,-390.86821487,0.00019178,2]
[368174613,1751050232550,-460.0,0.00019178,2]
[368174616,1751050232559,-460.0,0.00019178,2]
[368174619,1751050232568,-460.0,0.00019178,2]
[368174622,1751050232577,-464.87007818,0.00019178,2]
[368174625,1751050232586,-460.0,0.00019178,2]
[368174628,1751050232596,-460.0,0.00019178,2]
[368174631,1751050232605,-460.0,0.00019178,2]
[368174634,1751050232614,-195.52314482,0.00019178,2]
[368174637,1751050232623,-585.51,0.00019178,2]
[368174640,1751050232633,-460.0,0.00019178,2]
[368174643,1751050232643,-460.0,0.00019178,2]
[368174645,1751050232653,-460.0,0.00019178,2]
[368174648,1751050232662,-200.03581694,0.00019178,2]
[368174650,1751050232672,-460.0,0.00019178,2]
[368174652,1751050232682,-460.0,0.00019178,2]
[368174654,1751050232692,-460.0,0.00019178,2]
[368174656,1751050232701,-460.0,0.00019178,2]
[368174658,1751050232711,-460.0,0.00019178,2]
[368174660,1751050232720,-450.0,0.00019178,2]
[368174662,1751050232729,-460.0,0.00019178,2]
[368174664,1751050232738,-460.0,0.00019178,2]
[368174666,1751050232747,-460.0,0.00019178,2]
[368174668,1751050232756,-460.0,0.00019178,2]
[368174670,1751050232766,-460.0,0.00019178,2]
[368174672,1751050232775,-587.75,0.00019178,2]
[368174674,1751050232784,-716.03,0.00019178,2]
[368174676,1751050232794,-278.98,0.00019178,2]
[368174678,1751050232805,-670.01,0.00019178,2]
[368174681,1751050232815,-460.0,0.00019178,2]
[368174683,1751050232825,-460.0,0.00019178,2]
[368174685,1751050232835,-460.0,0.00019178,2]
[368174686,1751050232844,-460.0,0.00019178,2]
[368174688,1751050232853,-1088.45,0.00019178,2]
[368174690,1751050232863,-460.0,0.00019178,2]
[368174693,1751050232872,-460.0,0.00019178,2]
[368174695,1751050232882,-460.0,0.00019178,2]
[368174697,1751050232892,-460.0,0.00019178,2]
[368174699,1751050232902,-460.0,0.00019178,2]
[368174701,1751050232912,-460.0,0.00019178,2]
[368174703,1751050232922,-460.0,0.00019178,2]
[368174705,1751050232932,-460.0,0.00019178,2]
[368174707,1751050232941,-460.0,0.00019178,2]
[368174709,1751050232951,-460.0,0.00019178,2]
[368174711,1751050232961,-460.0,0.00019178,2]
[368174713,1751050232971,-460.0,0.00019178,2]
[368174715,1751050232981,-460.0,0.00019178,2]
[368174717,1751050232990,-460.0,0.00019178,2]
[368174719,1751050232999,-460.0,0.00019178,2]
[368174721,1751050233009,-430.0,0.00019178,2]
[368174723,1751050233019,-460.0,0.00019178,2]
[368174725,1751050233029,-460.0,0.00019178,2]
[368174727,1751050233040,-460.0,0.00019178,2]
[368174729,1751050233056,-460.0,0.00019178,2]
[368174731,1751050233066,-541.28,0.00019178,2]
[368174733,1751050233076,-566.63691075,0.00019178,2]
[368174735,1751050233087,-432.31898986,0.00019178,2]
[368174737,1751050233096,-460.0,0.00019178,2]
[368174739,1751050233106,-316.94377066,0.00019178,2]
[368174741,1751050233116,-460.0,0.00019178,2]
[368174743,1751050233125,-460.0,0.00019178,2]
[368174745,1751050233135,-218.62594825,0.00019178,2]
[368174747,1751050233145,-460.0,0.00019178,2]
[368174749,1751050233155,-460.0,0.00019178,2]
[368174751,1751050233164,-460.0,0.00019178,2]
[368174753,1751050233174,-460.0,0.00019178,2]
[368174755,1751050233184,-460.0,0.00019178,2]
[368174757,1751050233193,-460.0,0.00019178,2]
[368174759,1751050233203,-460.0,0.00019178,2]
[368174761,1751050233212,-460.0,0.00019178,2]
[368174763,1751050233222,-460.0,0.00019178,2]
[368174765,1751050233231,-460.0,0.00019178,2]
[368174767,1751050233241,-460.0,0.00019178,2]
[368174769,1751050233253,-460.0,0.00019178,2]
[368174770,1751050233263,-460.0,0.00019178,2]
[368174773,1751050233274,-460.0,0.00019178,2]
[368174775,1751050233286,-460.0,0.00019178,2]
[368174776,1751050233300,-460.0,0.00019178,2]
[368174778,1751050233313,-460.0,0.00019178,2]
[368174781,1751050233323,-460.0,0.00019178,2]
[368174782,1751050233332,-460.0,0.00019178,2]
[368174785,1751050233342,-460.0,0.00019178,2]
[368174787,1751050233352,-440.0,0.00019178,2]
[368174789,1751050233362,-460.0,0.00019178,2]
[368174790,1751050233372,-460.0,0.00019178,2]
[368174793,1751050233382,-460.0,0.00019178,2]
[368174795,1751050233391,-460.0,0.00019178,2]
[368174797,1751050233401,-460.0,0.00019178,2]
[368174799,1751050233410,-778.94,0.00019178,2]
[368174801,1751050233420,-460.0,0.00019178,2]
[368174803,1751050233430,-460.0,0.00019178,2]
[368174805,1751050233439,-460.0,0.00019178,2]
[368174807,1751050233449,-460.0,0.00019178,2]
[368174809,1751050233458,-460.0,0.00019178,2]
[368174810,1751050233468,-460.0,0.00019178,2]
[368174813,1751050233477,-460.0,0.00019178,2]
[368174814,1751050233486,-460.0,0.00019178,2]
[368174816,1751050233495,-460.0,0.00019178,2]
[368174819,1751050233505,-460.0,0.00019178,2]
[368174821,1751050233515,-369.27939883,0.00019178,2]
[368174822,1751050233524,-460.0,0.00019178,2]
[368174824,1751050233532,-460.0,0.00019178,2]
[368174826,1751050233542,-159.60804056,0.00019178,2]
[368174829,1751050233559,-300.39195944,0.00019178,2]
[368174831,1751050233568,-460.0,0.00019178,2]
[368174833,1751050233577,-424.6179984,0.00019178,2]
[368174835,1751050233587,-460.0,0.00019178,2]
[368174837,1751050233597,-710.39,0.00019178,2]
[368174839,1751050233606,-590.17,0.00019178,2]
[368174841,1751050233616,-460.0,0.00019178,2]
[368174843,1751050233625,-460.0,0.00019178,2]
[368174845,1751050233636,-460.0,0.00019178,2]
[368174847,1751050233645,-602.83,0.00019178,2]
[368174849,1751050233656,-460.0,0.00019178,2]
[368174851,1751050233665,-460.0,0.00019178,2]
[368174853,1751050233675,-518.26,0.00019178,2]
[368174855,1751050233685,-460.0,0.00019178,2]
[368174857,1751050233694,-460.0,0.00019178,2]
[368174859,1751050233703,-460.0,0.00019178,2]
[368174861,1751050233713,-460.0,0.00019178,2]
[368174863,1751050233723,-460.0,0.00019178,2]
[368174865,1751050233732,-460.0,0.00019178,2]
[368174867,1751050233742,-460.0,0.00019178,2]
[368174869,1751050233751,-460.0,0.00019178,2]
[368174871,1751050233761,-460.0,0.00019178,2]
[368174873,1751050233770,-460.0,0.00019178,2]
[368174875,1751050233780,-460.0,0.00019178,2]
[368174877,1751050233790,-460.0,0.00019178,2]
[368174879,1751050233799,-460.0,0.00019178,2]
[368174881,1751050233809,-460.0,0.00019178,2]
[368174883,1751050233818,-481.37,0.00019178,2]
[368174885,1751050233828,-460.0,0.00019178,2]
[368174900,1751050233961,-592.57,0.00019178,2]
[368174902,1751050233972,-460.0,0.00019178,2]
[368174904,1751050233982,-460.0,0.00019178,2]
[368174906,1751050233992,-546.46286951,0.00019178,2]
[368174908,1751050234002,-460.0,0.00019178,2]
[368174910,1751050234011,-460.0,0.00019178,2]
[368174912,1751050234021,-463.00665894,0.00019178,2]
[368174914,1751050234031,-460.0,0.00019178,2]
[368174916,1751050234041,-460.0,0.00019178,2]
[368174918,1751050234052,-460.0,0.00019178,2]
[368174920,1751050234061,-460.0,0.00019178,2]
[368174922,1751050234071,-460.0,0.00019178,2]
[368174924,1751050234080,-460.0,0.00019178,2]
[368174926,1751050234090,-460.0,0.00019178,2]
[368174928,1751050234099,-460.0,0.00019178,2]
[368174930,1751050234109,-460.0,0.00019178,2]
[368174932,1751050234118,-176.66188115,0.00019178,2]
[368174934,1751050234127,-460.0,0.00019178,2]
[368174936,1751050234137,-460.0,0.00019178,2]
[368174938,1751050234147,-460.0,0.00019178,2]
[368174940,1751050234156,-460.0,0.00019178,2]
[368174942,1751050234165,-824.3,0.00019178,2]
[368174944,1751050234175,-344.24059989,0.00019178,2]
[368174946,1751050234185,-460.0,0.00019178,2]
[368174948,1751050234194,-460.0,0.00019178,2]
[368174950,1751050234204,-460.0,0.00019178,2]
[368174952,1751050234213,-460.0,0.00019178,2]
[368174954,1751050234223,-460.0,0.00019178,2]
[368174956,1751050234233,-460.0,0.00019178,2]
[368174958,1751050234243,-460.0,0.00019178,2]
[368174960,1751050234252,-460.0,0.00019178,2]
[368174962,1751050234261,-460.0,0.00019178,2]
[368174964,1751050234271,-460.0,0.00019178,2]
[368174966,1751050234281,-460.0,0.00019178,2]
[368174968,1751050234290,-463.8458609,0.00019178,2]
[368174970,1751050234300,-460.0,0.00019178,2]
[368174972,1751050234310,-460.0,0.00019178,2]
[368174974,1751050234320,-460.0,0.00019178,2]
[368174976,1751050234330,-460.0,0.00019178,2]
[368174978,1751050234339,-308.47891596,0.00019178,2]
[368174980,1751050234348,-460.0,0.00019178,2]
[368174982,1751050234357,-365.25001175,0.00019178,2]
[368174984,1751050234367,-460.0,0.00019178,2]
[368174986,1751050234377,-460.0,0.00019178,2]
[368174988,1751050234387,-460.0,0.00019178,2]
[368174990,1751050234396,-460.0,0.00019178,2]
[368174991,1751050234406,-460.0,0.00019178,2]
[368174993,1751050234415,-460.0,0.00019178,2]
[368174995,1751050234424,-460.0,0.00019178,2]
[368174998,1751050234434,-460.0,0.00019178,2]
[368174999,1751050234443,-460.0,0.00019178,2]
[368175001,1751050234452,-460.0,0.00019178,2]
[368175003,1751050234462,-133.4140795,0.00019178,2]
[368175006,1751050234475,-326.5859205,0.00019178,2]
[368175008,1751050234484,-219.91970763,0.00019178,2]
[368175390,1751050238284,-240.08029237,0.00019178,2]
[368175393,1751050238298,-59.91970763,0.00019178,2]
[368175403,1751050238392,-680.54029237,0.00019178,2]
[368175406,1751050238403,-460.0,0.00019178,2]
[368175408,1751050238415,-460.0,0.00019178,2]
[368175410,1751050238425,-460.0,0.00019178,2]
[368175412,1751050238434,-460.0,0.00019178,2]
[368175414,1751050238445,-306.03172676,0.00019178,2]
[368175416,1751050238454,-460.0,0.00019178,2]
[368175418,1751050238464,-724.33,0.00019178,2]
[368175420,1751050238473,-165.4410813,0.00019178,2]
[368175422,1751050238483,-460.0,0.00019178,2]
[368175424,1751050238492,-500.0,0.00019178,2]
[368175426,1751050238501,-460.0,0.00019178,2]
[368175428,1751050238511,-460.0,0.00019178,2]
[368175430,1751050238520,-460.0,0.00019178,2]
[368175432,1751050238529,-460.0,0.00019178,2]
[368175434,1751050238538,-460.0,0.00019178,2]
[368175436,1751050238547,-460.0,0.00019178,2]
[368175438,1751050238557,-460.0,0.00019178,2]
[368175440,1751050238566,-460.0,0.00019178,2]
[368175442,1751050238575,-4024.15,0.00019178,2]
[368175444,1751050238584,-460.0,0.00019178,2]
[368175446,1751050238594,-460.0,0.00019178,2]
[368175448,1751050238603,-460.0,0.00019178,2]
[368175450,1751050238612,-464.58,0.00019178,2]
[368175452,1751050238622,-4326.72,0.00019178,2]
[368175454,1751050238631,-1028.81,0.00019178,2]
[368175456,1751050238641,-460.0,0.00019178,2]
[368175458,1751050238651,-460.0,0.00019178,2]
[368175460,1751050238660,-460.0,0.00019178,2]
[368175462,1751050238669,-573.14,0.00019178,2]
[368175464,1751050238680,-460.0,0.00019178,2]
[368175466,1751050238690,-460.0,0.00019178,2]
[368175468,1751050238699,-460.0,0.00019178,2]
[368175470,1751050238709,-494.06,0.00019178,2]
[368175472,1751050238718,-460.0,0.00019178,2]
[368175474,1751050238728,-4640.97,0.00019178,2]
[368175476,1751050238737,-5598.36,0.00019178,2]
[368175478,1751050238747,-460.0,0.00019178,2]
[368175480,1751050238756,-460.0,0.00019178,2]
[368175482,1751050238765,-460.0,0.00019178,2]
[368175484,1751050238775,-460.0,0.00019178,2]
[368175486,1751050238784,-460.0,0.00019178,2]
[368175488,1751050238794,-805.6,0.00019178,2]
[368175490,1751050238804,-1693.4,0.00019178,2]
[368175492,1751050238813,-2041.2,0.00019178,2]
[368175494,1751050238823,-460.0,0.00019178,2]
[368175496,1751050238833,-460.0,0.00019178,2]
[368175498,1751050238842,-460.0,0.00019178,2]
[368175500,1751050238851,-460.0,0.00019178,2]
[368175502,1751050238860,-460.0,0.00019178,2]
[368175504,1751050238870,-460.0,0.00019178,2]
[368175506,1751050238880,-460.0,0.00019178,2]
[368175508,1751050238889,-460.0,0.00019178,2]
[368175510,1751050238898,-460.0,0.00019178,2]
[368175512,1751050238907,-460.0,0.00019178,2]
[368175514,1751050238917,-2276.45,0.00019178,2]
[368175516,1751050238927,-460.0,0.00019178,2]
[368175518,1751050238936,-632.3,0.00019178,2]
[368175520,1751050238945,-460.0,0.00019178,2]
[368175522,1751050238954,-1742.49,0.00019178,2]
[368175524,1751050238963,-460.0,0.00019178,2]
[368175526,1751050238973,-460.0,0.00019178,2]
[368175528,1751050238982,-563.86,0.00019178,2]
[368175530,1751050238991,-460.0,0.00019178,2]
[368175532,1751050239001,-460.0,0.00019178,2]
[368175534,1751050239010,-460.0,0.00019178,2]
[368175536,1751050239021,-460.0,0.00019178,2]
[368175538,1751050239030,-829.09,0.00019178,2]
[368175540,1751050239039,-460.0,0.00019178,2]
[368175542,1751050239052,-460.0,0.00019178,2]
[368175544,1751050239061,-460.0,0.00019178,2]
[368175546,1751050239071,-391.60839541,0.00019178,2]
[368175548,1751050239080,-463.03041247,0.00019178,2]
[368175550,1751050239090,-460.0,0.00019178,2]
[368175552,1751050239099,-460.0,0.00019178,2]
[368175554,1751050239109,-807.33,0.00019178,2]
[368175556,1751050239118,-460.0,0.00019178,2]
[368175558,1751050239128,-1348.64,0.00019178,2]
[368175560,1751050239138,-460.0,0.00019178,2]
[368175562,1751050239147,-460.0,0.00019178,2]
[368175564,1751050239156,-1350.56,0.00019178,2]
[368175566,1751050239166,-460.0,0.00019178,2]
[368175568,1751050239175,-460.0,0.00019178,2]
[368175570,1751050239184,-460.0,0.00019178,2]
[368175572,1751050239193,-460.0,0.00019178,2]
[368175574,1751050239203,-460.0,0.00019178,2]
[368175576,1751050239213,-460.0,0.00019178,2]
[368175578,1751050239222,-460.0,0.00019178,2]
[368175580,1751050239231,-460.0,0.00019178,2]
[368175582,1751050239240,-2117.93,0.00019178,2]
[368175584,1751050239249,-488.2,0.00019178,2]
[368175586,1751050239258,-680.42,0.00019178,2]
[368175588,1751050239267,-460.0,0.00019178,2]
[368175590,1751050239276,-528.67,0.00019178,2]
[368175592,1751050239285,-679.2,0.00019178,2]
[368175594,1751050239294,-460.0,0.00019178,2]
[368175596,1751050239304,-779.84,0.00019178,2]
[368175598,1751050239313,-1208.44,0.00019178,2]
[368175600,1751050239322,-460.0,0.00019178,2]
[368175602,1751050239331,-460.0,0.00019178,2]
[368175604,1751050239340,-766.56,0.00019178,2]
[368175606,1751050239350,-460.0,0.00019178,2]
[368175608,1751050239359,-958.22,0.00019178,2]
[368175610,1751050239369,-903.72,0.00019178,2]
[368175612,1751050239378,-460.0,0.00019178,2]
[368175614,1751050239387,-460.0,0.00019178,2]
[368175616,1751050239396,-598.54,0.00019178,2]
[368175618,1751050239405,-813.48,0.00019178,2]
[368175620,1751050239414,-460.0,0.00019178,2]
[368175622,1751050239423,-460.0,0.00019178,2]
[368175624,1751050239433,-470.94844231,0.00019178,2]
[368175627,1751050239443,-460.0,0.00019178,2]
[368175629,1751050239453,-460.0,0.00019178,2]
[368175631,1751050239462,-460.0,0.00019178,2]
[368175633,1751050239472,-258.84722206,0.00019178,2]
[368175635,1751050239482,-460.0,0.00019178,2]
[368175637,1751050239491,-460.0,0.00019178,2]
[368175639,1751050239501,-2547.18,0.00019178,2]
[368175641,1751050239510,-460.0,0.00019178,2]